[Event "Titled Tuesday Blitz May 30 Late 2023"]
[White "Janaszak, Dawid"]
[Black "Bordi, Kevin"]
[WhiteFideId "1119206"]
[BlackFideId "621862"]
[WhiteElo "2220"]
[BlackElo "2768"]
[Result "0-1"]
[Round "05"]
[TimeControl "180+2"]
[Date "2023.05.31"]
[WhiteClock "0:00:03"]
[BlackClock "0:00:06"]

1. d4 {[%clk 0:03:00]}  d5 {[%clk 0:02:59]} 2. Bf4 {[%clk 0:03:00]}  c5 {[%clk 0:02:59]} 3. e3 {[%clk 0:03:00]}  Nc6 {[%clk 0:03:00]} 4. Nf3 {[%clk 0:03:00]}  Nf6 {[%clk 0:02:59]} 5. Nbd2 {[%clk 0:03:00]}  e6 {[%clk 0:02:59]} 6. c3 {[%clk 0:02:58]}  Nh5 {[%clk 0:02:59]} 7. Be5 {[%clk 0:02:52]}  f6 {[%clk 0:02:59]} 8. Bg3 {[%clk 0:02:51]}  g6 {[%clk 0:02:55]} 9. Bd3 {[%clk 0:02:41]}  Be7 {[%clk 0:02:55]} 10. Qe2 {[%clk 0:02:39]}  cxd4 {[%clk 0:02:53]} 11. exd4 {[%clk 0:02:36]}  O-O {[%clk 0:02:53]} 12. O-O-O {[%clk 0:02:32]}  b5 {[%clk 0:02:52]} 13. Nh4 {[%clk 0:02:18]}  f5 {[%clk 0:02:39]} 14. Bxb5 {[%clk 0:02:04]}  Nxd4 {[%clk 0:02:17]} 15. cxd4 {[%clk 0:02:00]}  Bxh4 {[%clk 0:02:17]} 16. Nf3 {[%clk 0:01:41]}  Bxg3 {[%clk 0:02:13]} 17. hxg3 {[%clk 0:01:41]}  Qb6 {[%clk 0:02:12]} 18. Rd2 {[%clk 0:01:21]}  Nf6 {[%clk 0:02:09]} 19. Ng5 {[%clk 0:01:18]}  Ne4 {[%clk 0:01:49]} 20. Nxh7 {[%clk 0:01:04]}  Rf7 {[%clk 0:01:46]} 21. Ng5 {[%clk 0:01:03]}  Nxg5 {[%clk 0:01:42]} 22. Be8 {[%clk 0:00:53]}  Rg7 {[%clk 0:01:24]} 23. Rc2 {[%clk 0:00:50]}  Ba6 {[%clk 0:01:18]} 24. Qe3 {[%clk 0:00:51]}  Rxe8 {[%clk 0:01:16]} 25. Qxg5 {[%clk 0:00:51]}  Rc8 {[%clk 0:00:56]} 26. Rxc8+ {[%clk 0:00:47]}  Bxc8 {[%clk 0:00:57]} 27. Qh6 {[%clk 0:00:40]}  Kf7 {[%clk 0:00:47]} 28. Qh8 {[%clk 0:00:40]}  Ba6 {[%clk 0:00:39]} 29. Kb1 {[%clk 0:00:33]}  Qc7 {[%clk 0:00:26]} 30. Ka1 {[%clk 0:00:22]}  Kf6 {[%clk 0:00:17]} 31. Qf8+ {[%clk 0:00:19]}  Rf7 {[%clk 0:00:15]} 32. Qh8+ {[%clk 0:00:18]}  Ke7 {[%clk 0:00:16]} 33. Re1 {[%clk 0:00:15]}  Qc8 {[%clk 0:00:12]} 34. Qe5 {[%clk 0:00:14]}  Rf6 {[%clk 0:00:10]} 35. Qf4 {[%clk 0:00:13]}  Kf7 {[%clk 0:00:10]} 36. Qh6 {[%clk 0:00:14]}  Ke7 {[%clk 0:00:10]} 37. Qg7+ {[%clk 0:00:14]}  Rf7 {[%clk 0:00:10]} 38. Qxg6 {[%clk 0:00:14]}  Qc6 {[%clk 0:00:09]} 39. Qg5+ {[%clk 0:00:14]}  Kd6 {[%clk 0:00:08]} 40. Qd8+ {[%clk 0:00:12]}  Qd7 {[%clk 0:00:09]} 41. Qb8+ {[%clk 0:00:12]}  Qc7 {[%clk 0:00:09]} 42. Qb4+ {[%clk 0:00:11]}  Kd7 {[%clk 0:00:09]} 43. Qa4+ {[%clk 0:00:12]}  Qc6 {[%clk 0:00:08]} 44. Qb4 {[%clk 0:00:12]}  Bc8 {[%clk 0:00:08]} 45. Kb1 {[%clk 0:00:11]}  Qd6 {[%clk 0:00:08]} 46. Qa4+ {[%clk 0:00:10]}  Ke7 {[%clk 0:00:08]} 47. Qc2 {[%clk 0:00:09]}  Bd7 {[%clk 0:00:09]} 48. Qd2 {[%clk 0:00:09]}  Ke8 {[%clk 0:00:08]} 49. Qh6 {[%clk 0:00:09]}  Qf8 {[%clk 0:00:08]} 50. Qg6 {[%clk 0:00:08]}  Qg7 {[%clk 0:00:08]} 51. Qh5 {[%clk 0:00:09]}  Qxd4 {[%clk 0:00:08]} 52. Rc1 {[%clk 0:00:07]}  Qf6 {[%clk 0:00:06]} 53. Qe2 {[%clk 0:00:06]}  f4 {[%clk 0:00:06]} 54. g4 {[%clk 0:00:06]}  e5 {[%clk 0:00:06]} 55. Ka1 {[%clk 0:00:06]}  e4 {[%clk 0:00:06]} 56. Qc2 {[%clk 0:00:04]}  Re7 {[%clk 0:00:06]} 57. g5 {[%clk 0:00:04]}  Qxg5 {[%clk 0:00:06]} 58. Qc7 {[%clk 0:00:05]}  Qe5 {[%clk 0:00:06]} 59. Qb7 {[%clk 0:00:04]}  e3 {[%clk 0:00:06]} 60. fxe3 {[%clk 0:00:04]}  fxe3 {[%clk 0:00:07]} 61. Rh1 {[%clk 0:00:04]}  e2 {[%clk 0:00:07]} 62. Qa8+ {[%clk 0:00:04]}  Kf7 {[%clk 0:00:07]} 63. Rh7+ {[%clk 0:00:04]}  Kg6 {[%clk 0:00:07]} 64. Qg8+ {[%clk 0:00:04]}  Kf5 {[%clk 0:00:07]} 65. Rh5+ {[%clk 0:00:04]}  Kf4 {[%clk 0:00:08]} 66. Rh4+ {[%clk 0:00:03]}  Ke3 {[%clk 0:00:06]} 67. Rh1 {[%clk 0:00:03]}  Kd2 {[%clk 0:00:06]} 0-1


[Site "https://www.chess.com"]

[Event "Titled Tuesday Blitz May 30 Late 2023"]
[White "Yanchenko, Roman"]
[Black "reevecanada"]
[WhiteFideId "4137329"]
[WhiteElo "2491"]
[BlackElo "2469"]
[Result "0-1"]
[Round "05"]
[TimeControl "180+2"]
[Date "2023.05.31"]
[WhiteClock "0:00:06"]
[BlackClock "0:00:10"]

1. d4 {[%clk 0:03:00]}  d5 {[%clk 0:02:57]} 2. c4 {[%clk 0:03:01]}  c6 {[%clk 0:02:56]} 3. Nc3 {[%clk 0:03:01]}  Nf6 {[%clk 0:02:55]} 4. Bg5 {[%clk 0:03:01]}  e6 {[%clk 0:02:55]} 5. e3 {[%clk 0:03:01]}  Bd6 {[%clk 0:02:54]} 6. Nf3 {[%clk 0:03:00]}  h6 {[%clk 0:02:54]} 7. Bh4 {[%clk 0:03:00]}  Nbd7 {[%clk 0:02:53]} 8. Qc2 {[%clk 0:03:00]}  O-O {[%clk 0:02:50]} 9. a3 {[%clk 0:02:59]}  e5 {[%clk 0:02:47]} 10. cxd5 {[%clk 0:02:54]}  cxd5 {[%clk 0:02:43]} 11. Nxd5 {[%clk 0:02:42]}  exd4 {[%clk 0:02:41]} 12. Nxf6+ {[%clk 0:02:00]}  Nxf6 {[%clk 0:02:40]} 13. Nxd4 {[%clk 0:01:52]}  Re8 {[%clk 0:02:30]} 14. Bb5 {[%clk 0:01:36]}  Re5 {[%clk 0:01:56]} 15. O-O {[%clk 0:01:17]}  Rc5 {[%clk 0:01:47]} 16. Qe2 {[%clk 0:01:13]}  Bg4 {[%clk 0:01:38]} 17. f3 {[%clk 0:01:13]}  Bh5 {[%clk 0:01:35]} 18. Bg3 {[%clk 0:01:09]}  Bxg3 {[%clk 0:01:30]} 19. hxg3 {[%clk 0:01:09]}  Qb6 {[%clk 0:01:26]} 20. Bd3 {[%clk 0:01:06]}  Re8 {[%clk 0:01:16]} 21. g4 {[%clk 0:01:02]}  Bg6 {[%clk 0:01:14]} 22. Bxg6 {[%clk 0:01:02]}  fxg6 {[%clk 0:01:14]} 23. Rfe1 {[%clk 0:00:54]}  Rce5 {[%clk 0:01:09]} 24. Qc4+ {[%clk 0:00:54]}  Kh7 {[%clk 0:01:07]} 25. e4 {[%clk 0:00:54]}  Qxb2 {[%clk 0:01:06]} 26. Qb4 {[%clk 0:00:32]}  Qxb4 {[%clk 0:00:51]} 27. axb4 {[%clk 0:00:33]}  a6 {[%clk 0:00:51]} 28. Rac1 {[%clk 0:00:32]}  Nd5 {[%clk 0:00:47]} 29. b5 {[%clk 0:00:22]}  axb5 {[%clk 0:00:45]} 30. Rc5 {[%clk 0:00:17]}  Nf4 {[%clk 0:00:43]} 31. Rxb5 {[%clk 0:00:17]}  Rxb5 {[%clk 0:00:40]} 32. Nxb5 {[%clk 0:00:18]}  Rd8 {[%clk 0:00:35]} 33. g3 {[%clk 0:00:14]}  Ne6 {[%clk 0:00:34]} 34. Re2 {[%clk 0:00:12]}  Rd3 {[%clk 0:00:32]} 35. Kg2 {[%clk 0:00:11]}  Rb3 {[%clk 0:00:31]} 36. Nd6 {[%clk 0:00:12]}  b5 {[%clk 0:00:28]} 37. Rd2 {[%clk 0:00:11]}  b4 {[%clk 0:00:26]} 38. f4 {[%clk 0:00:12]}  Rc3 {[%clk 0:00:25]} 39. f5 {[%clk 0:00:12]}  Ng5 {[%clk 0:00:20]} 40. Nf7 {[%clk 0:00:09]}  Nxf7 {[%clk 0:00:19]} 41. Rd7 {[%clk 0:00:08]}  Ng5 {[%clk 0:00:18]} 42. Rd6 {[%clk 0:00:09]}  Rxg3+ {[%clk 0:00:18]} 43. Kh2 {[%clk 0:00:07]}  gxf5 {[%clk 0:00:14]} 44. gxf5 {[%clk 0:00:08]}  Rc3 {[%clk 0:00:13]} 45. e5 {[%clk 0:00:08]}  b3 {[%clk 0:00:13]} 46. Rb6 {[%clk 0:00:08]}  Re3 {[%clk 0:00:13]} 47. e6 {[%clk 0:00:08]}  g6 {[%clk 0:00:13]} 48. Rb7+ {[%clk 0:00:08]}  Kg8 {[%clk 0:00:12]} 49. fxg6 {[%clk 0:00:09]}  Nxe6 {[%clk 0:00:11]} 50. Kg2 {[%clk 0:00:08]}  Rc3 {[%clk 0:00:11]} 51. Kf2 {[%clk 0:00:08]}  Nc5 {[%clk 0:00:12]} 52. Rb5 {[%clk 0:00:07]}  b2 {[%clk 0:00:11]} 53. Ke2 {[%clk 0:00:06]}  Rb3 {[%clk 0:00:11]} 54. Rxc5 {[%clk 0:00:06]}  b1=Q {[%clk 0:00:10]} 0-1


[Site "https://www.chess.com"]

[Event "Titled Tuesday Blitz May 30 Late 2023"]
[White "Danielyan, Vahe"]
[Black "Roberz12"]
[WhiteFideId "13304828"]
[WhiteElo "2423"]
[BlackElo "2373"]
[Result "1-0"]
[Round "05"]
[TimeControl "180+2"]
[Date "2023.05.31"]
[WhiteClock "0:00:31"]
[BlackClock "0:01:09"]

1. e4 {[%clk 0:03:00]}  d6 {[%clk 0:02:59]} 2. d4 {[%clk 0:03:00]}  g6 {[%clk 0:03:00]} 3. Nc3 {[%clk 0:03:01]}  Bg7 {[%clk 0:03:00]} 4. Nf3 {[%clk 0:03:02]}  Bg4 {[%clk 0:02:56]} 5. Be2 {[%clk 0:02:59]}  Nc6 {[%clk 0:02:56]} 6. Be3 {[%clk 0:02:59]}  e5 {[%clk 0:02:50]} 7. dxe5 {[%clk 0:02:41]}  Bxf3 {[%clk 0:02:49]} 8. Bxf3 {[%clk 0:02:40]}  Nxe5 {[%clk 0:02:46]} 9. Be2 {[%clk 0:02:40]}  Ne7 {[%clk 0:02:46]} 10. O-O {[%clk 0:02:40]}  O-O {[%clk 0:02:47]} 11. Qd2 {[%clk 0:02:38]}  Re8 {[%clk 0:02:34]} 12. Rad1 {[%clk 0:02:37]}  Qc8 {[%clk 0:02:33]} 13. h3 {[%clk 0:02:34]}  Qe6 {[%clk 0:02:33]} 14. b3 {[%clk 0:02:30]}  Rad8 {[%clk 0:02:30]} 15. f4 {[%clk 0:02:23]}  N5c6 {[%clk 0:02:30]} 16. Bf3 {[%clk 0:02:03]}  Nf5 {[%clk 0:02:27]} 17. exf5 {[%clk 0:01:55]}  Qxe3+ {[%clk 0:02:27]} 18. Qxe3 {[%clk 0:01:56]}  Rxe3 {[%clk 0:02:28]} 19. Nd5 {[%clk 0:01:57]}  Ree8 {[%clk 0:02:19]} 20. Nxc7 {[%clk 0:01:54]}  Rf8 {[%clk 0:02:11]} 21. Nb5 {[%clk 0:01:54]}  gxf5 {[%clk 0:02:09]} 22. Bxc6 {[%clk 0:01:50]}  bxc6 {[%clk 0:02:10]} 23. Nxd6 {[%clk 0:01:51]}  c5 {[%clk 0:02:08]} 24. Nxf5 {[%clk 0:01:51]}  Bf6 {[%clk 0:02:08]} 25. Kf2 {[%clk 0:01:47]}  c4 {[%clk 0:02:04]} 26. g4 {[%clk 0:01:33]}  cxb3 {[%clk 0:01:53]} 27. axb3 {[%clk 0:01:34]}  Rc8 {[%clk 0:01:52]} 28. Rd2 {[%clk 0:01:34]}  Bc3 {[%clk 0:01:51]} 29. Re2 {[%clk 0:01:33]}  Rc5 {[%clk 0:01:47]} 30. Rd1 {[%clk 0:01:31]}  Bf6 {[%clk 0:01:42]} 31. Rd6 {[%clk 0:01:26]}  Bd8 {[%clk 0:01:38]} 32. Nh6+ {[%clk 0:01:11]}  Kg7 {[%clk 0:01:38]} 33. Nf5+ {[%clk 0:01:11]}  Kh8 {[%clk 0:01:38]} 34. c4 {[%clk 0:01:10]}  Bb6 {[%clk 0:01:37]} 35. Kf3 {[%clk 0:01:09]}  Ra5 {[%clk 0:01:29]} 36. Red2 {[%clk 0:01:05]}  Ra3 {[%clk 0:01:28]} 37. R2d3 {[%clk 0:01:05]}  Rc8 {[%clk 0:01:28]} 38. Rd7 {[%clk 0:00:58]}  h5 {[%clk 0:01:24]} 39. gxh5 {[%clk 0:00:55]}  Rc5 {[%clk 0:01:24]} 40. Kg4 {[%clk 0:00:54]}  Ra1 {[%clk 0:01:24]} 41. Rxf7 {[%clk 0:00:51]}  Rc8 {[%clk 0:01:14]} 42. Rdd7 {[%clk 0:00:44]}  Rg1+ {[%clk 0:01:12]} 43. Kf3 {[%clk 0:00:33]}  Rc6 {[%clk 0:01:09]} 44. Rf8+ {[%clk 0:00:31]} 1-0


[Site "https://www.chess.com"]

[Event "Titled Tuesday Blitz May 30 Late 2023"]
[White "Grigoriants, Sergey"]
[Black "Ezat, Mohamed"]
[WhiteFideId "4130804"]
[BlackFideId "10600906"]
[WhiteElo "2502"]
[BlackElo "2386"]
[Result "1-0"]
[Round "05"]
[TimeControl "180+2"]
[Date "2023.05.31"]
[WhiteClock "0:00:48"]
[BlackClock "0:00:36"]

1. d4 {[%clk 0:02:57]}  Nf6 {[%clk 0:02:56]} 2. c4 {[%clk 0:02:54]}  d6 {[%clk 0:02:53]} 3. Nc3 {[%clk 0:02:53]}  g6 {[%clk 0:02:50]} 4. e4 {[%clk 0:02:52]}  Bg7 {[%clk 0:02:51]} 5. Be2 {[%clk 0:02:53]}  O-O {[%clk 0:02:43]} 6. Be3 {[%clk 0:02:52]}  c5 {[%clk 0:02:39]} 7. d5 {[%clk 0:02:41]}  Qa5 {[%clk 0:02:35]} 8. Qd2 {[%clk 0:02:22]}  b5 {[%clk 0:02:24]} 9. cxb5 {[%clk 0:02:15]}  a6 {[%clk 0:02:22]} 10. bxa6 {[%clk 0:02:11]}  Bxa6 {[%clk 0:02:19]} 11. Bxa6 {[%clk 0:02:11]}  Nxa6 {[%clk 0:02:17]} 12. Nge2 {[%clk 0:02:11]}  Nb4 {[%clk 0:02:14]} 13. O-O {[%clk 0:02:08]}  Qa6 {[%clk 0:01:47]} 14. Bh6 {[%clk 0:01:46]}  Qd3 {[%clk 0:01:31]} 15. Qxd3 {[%clk 0:01:40]}  Nxd3 {[%clk 0:01:30]} 16. Bxg7 {[%clk 0:01:41]}  Kxg7 {[%clk 0:01:29]} 17. b3 {[%clk 0:01:36]}  Rfc8 {[%clk 0:01:25]} 18. a3 {[%clk 0:01:23]}  Nd7 {[%clk 0:01:11]} 19. Rfb1 {[%clk 0:01:22]}  N7e5 {[%clk 0:01:08]} 20. h3 {[%clk 0:01:17]}  f5 {[%clk 0:01:02]} 21. f4 {[%clk 0:01:12]}  Nd7 {[%clk 0:00:49]} 22. exf5 {[%clk 0:01:08]}  gxf5 {[%clk 0:00:48]} 23. Rd1 {[%clk 0:01:09]}  Nb2 {[%clk 0:00:43]} 24. Rd2 {[%clk 0:01:07]}  Rcb8 {[%clk 0:00:37]} 25. Rxb2 {[%clk 0:00:56]}  Nb6 {[%clk 0:00:36]} 26. Rbb1 {[%clk 0:00:48]} 1-0


[Site "https://www.chess.com"]

[Event "Titled Tuesday Blitz May 30 Late 2023"]
[White "Poltorak, Sebastian"]
[Black "Bazeev, German"]
[WhiteFideId "1199498"]
[BlackFideId "24119350"]
[WhiteElo "2195"]
[BlackElo "2466"]
[Result "0-1"]
[Round "05"]
[TimeControl "180+2"]
[Date "2023.05.31"]
[WhiteClock "0:00:02"]
[BlackClock "0:00:23"]

1. d4 {[%clk 0:02:56]}  Nf6 {[%clk 0:02:58]} 2. c4 {[%clk 0:02:49]}  e6 {[%clk 0:02:58]} 3. Nc3 {[%clk 0:02:45]}  Bb4 {[%clk 0:02:56]} 4. Nf3 {[%clk 0:02:41]}  b6 {[%clk 0:02:55]} 5. Qb3 {[%clk 0:02:41]}  a5 {[%clk 0:02:43]} 6. g3 {[%clk 0:02:34]}  Bb7 {[%clk 0:02:41]} 7. Bg2 {[%clk 0:02:34]}  O-O {[%clk 0:02:38]} 8. O-O {[%clk 0:02:32]}  Bxc3 {[%clk 0:02:39]} 9. Qxc3 {[%clk 0:02:31]}  h6 {[%clk 0:02:39]} 10. b3 {[%clk 0:02:25]}  Be4 {[%clk 0:02:38]} 11. Bb2 {[%clk 0:02:18]}  d6 {[%clk 0:02:38]} 12. Rad1 {[%clk 0:02:14]}  Nbd7 {[%clk 0:02:38]} 13. Rfe1 {[%clk 0:02:10]}  a4 {[%clk 0:02:37]} 14. b4 {[%clk 0:02:07]}  b5 {[%clk 0:02:38]} 15. a3 {[%clk 0:01:29]}  Qb8 {[%clk 0:02:27]} 16. Nd2 {[%clk 0:01:17]}  Bxg2 {[%clk 0:02:26]} 17. Kxg2 {[%clk 0:01:17]}  bxc4 {[%clk 0:01:52]} 18. Nxc4 {[%clk 0:01:13]}  Rc8 {[%clk 0:01:14]} 19. Qf3 {[%clk 0:01:03]}  Qb5 {[%clk 0:01:03]} 20. Rc1 {[%clk 0:00:49]}  d5 {[%clk 0:00:50]} 21. Nd2 {[%clk 0:00:41]}  Nb6 {[%clk 0:00:50]} 22. Qd3 {[%clk 0:00:41]}  Qxd3 {[%clk 0:00:48]} 23. exd3 {[%clk 0:00:41]}  Nfd7 {[%clk 0:00:45]} 24. f4 {[%clk 0:00:32]}  g6 {[%clk 0:00:44]} 25. Kf3 {[%clk 0:00:31]}  Kf8 {[%clk 0:00:43]} 26. h3 {[%clk 0:00:31]}  Ke7 {[%clk 0:00:43]} 27. g4 {[%clk 0:00:31]}  Kd6 {[%clk 0:00:43]} 28. Nf1 {[%clk 0:00:29]}  h5 {[%clk 0:00:38]} 29. Rc2 {[%clk 0:00:28]}  hxg4+ {[%clk 0:00:38]} 30. hxg4 {[%clk 0:00:28]}  Rh8 {[%clk 0:00:38]} 31. Bc1 {[%clk 0:00:25]}  f5 {[%clk 0:00:34]} 32. Rce2 {[%clk 0:00:21]}  Rae8 {[%clk 0:00:33]} 33. g5 {[%clk 0:00:16]}  Nc8 {[%clk 0:00:31]} 34. Bd2 {[%clk 0:00:16]}  Na7 {[%clk 0:00:31]} 35. Bc1 {[%clk 0:00:08]}  Nb5 {[%clk 0:00:32]} 36. Bb2 {[%clk 0:00:08]}  Nf8 {[%clk 0:00:28]} 37. Rh2 {[%clk 0:00:06]}  Rxh2 {[%clk 0:00:27]} 38. Nxh2 {[%clk 0:00:07]}  Re7 {[%clk 0:00:28]} 39. Kg3 {[%clk 0:00:06]}  Rh7 {[%clk 0:00:28]} 40. Nf3 {[%clk 0:00:06]}  Nd7 {[%clk 0:00:28]} 41. Ne5 {[%clk 0:00:06]}  Nxe5 {[%clk 0:00:28]} 42. dxe5+ {[%clk 0:00:06]}  Kc6 {[%clk 0:00:27]} 43. Rc1+ {[%clk 0:00:07]}  Kb6 {[%clk 0:00:27]} 44. Rc2 {[%clk 0:00:05]}  Rh1 {[%clk 0:00:27]} 45. Rc1 {[%clk 0:00:04]}  Rxc1 {[%clk 0:00:23]} 46. Bxc1 {[%clk 0:00:05]}  c5 {[%clk 0:00:23]} 47. bxc5+ {[%clk 0:00:02]}  Kxc5 {[%clk 0:00:24]} 48. Kf3 {[%clk 0:00:02]}  Kd4 {[%clk 0:00:25]} 49. Ke2 {[%clk 0:00:02]}  Kc3 {[%clk 0:00:25]} 50. Ke3 {[%clk 0:00:01]}  Kb3 {[%clk 0:00:23]} 51. d4 {[%clk 0:00:01]}  Nxa3 {[%clk 0:00:23]} 52. Kd3 {[%clk 0:00:02]}  Nc4 {[%clk 0:00:23]} 0-1


[Site "https://www.chess.com"]

[Event "Titled Tuesday Blitz May 30 Late 2023"]
[White "Vovk, Orest"]
[Black "Thomforde-Toates, Noah"]
[WhiteFideId "14113490"]
[BlackFideId "30951992"]
[WhiteElo "2215"]
[BlackElo "2743"]
[Result "0-1"]
[Round "05"]
[TimeControl "180+2"]
[Date "2023.05.31"]
[WhiteClock "0:00:03"]
[BlackClock "0:00:51"]

1. g4 {[%clk 0:02:55]}  d6 {[%clk 0:02:58]} 2. Bg2 {[%clk 0:02:55]}  Nc6 {[%clk 0:02:58]} 3. h3 {[%clk 0:02:54]}  e5 {[%clk 0:02:56]} 4. d3 {[%clk 0:02:53]}  Be7 {[%clk 0:02:55]} 5. c4 {[%clk 0:02:52]}  h5 {[%clk 0:02:54]} 6. g5 {[%clk 0:02:23]}  Bxg5 {[%clk 0:02:51]} 7. Bxg5 {[%clk 0:02:21]}  Qxg5 {[%clk 0:02:51]} 8. Bxc6+ {[%clk 0:02:21]}  bxc6 {[%clk 0:02:50]} 9. Nf3 {[%clk 0:02:22]}  Qe7 {[%clk 0:02:44]} 10. Qa4 {[%clk 0:02:18]}  Bd7 {[%clk 0:02:40]} 11. Qa5 {[%clk 0:02:18]}  Be6 {[%clk 0:02:28]} 12. Nc3 {[%clk 0:02:12]}  Nf6 {[%clk 0:02:26]} 13. Rg1 {[%clk 0:02:09]}  g6 {[%clk 0:02:26]} 14. Ng5 {[%clk 0:02:08]}  O-O {[%clk 0:02:22]} 15. O-O-O {[%clk 0:01:54]}  d5 {[%clk 0:02:12]} 16. c5 {[%clk 0:01:43]}  d4 {[%clk 0:02:07]} 17. Nce4 {[%clk 0:01:38]}  Nxe4 {[%clk 0:02:08]} 18. dxe4 {[%clk 0:01:35]}  Bc4 {[%clk 0:02:08]} 19. e3 {[%clk 0:01:18]}  dxe3 {[%clk 0:01:57]} 20. fxe3 {[%clk 0:01:13]}  Rab8 {[%clk 0:01:46]} 21. b3 {[%clk 0:00:58]}  Rb5 {[%clk 0:01:36]} 22. Qxa7 {[%clk 0:00:45]}  Rxc5 {[%clk 0:00:55]} 23. bxc4 {[%clk 0:00:11]}  Rxc4+ {[%clk 0:00:56]} 24. Kd2 {[%clk 0:00:11]}  Rd8+ {[%clk 0:00:54]} 25. Ke2 {[%clk 0:00:11]}  Rc2+ {[%clk 0:00:54]} 26. Ke1 {[%clk 0:00:03]}  Qb4+ {[%clk 0:00:51]} 0-1


[Site "https://www.chess.com"]

[Event "Titled Tuesday Blitz May 30 Late 2023"]
[White "Kourkoulos-Arditis, Stamatis"]
[Black "Srdanovic, Jovana"]
[WhiteFideId "4221990"]
[BlackFideId "954810"]
[WhiteElo "2400"]
[BlackElo "2169"]
[Result "1-0"]
[Round "05"]
[TimeControl "180+2"]
[Date "2023.05.31"]
[WhiteClock "0:00:23"]
[BlackClock "0:00:39"]

1. e4 {[%clk 0:02:56]}  c6 {[%clk 0:02:57]} 2. d4 {[%clk 0:02:50]}  d5 {[%clk 0:02:53]} 3. Nc3 {[%clk 0:02:50]}  dxe4 {[%clk 0:02:53]} 4. Nxe4 {[%clk 0:02:51]}  Bf5 {[%clk 0:02:53]} 5. Ng3 {[%clk 0:02:50]}  Bg6 {[%clk 0:02:54]} 6. h4 {[%clk 0:02:47]}  h6 {[%clk 0:02:53]} 7. Nf3 {[%clk 0:02:47]}  Nd7 {[%clk 0:02:53]} 8. h5 {[%clk 0:02:46]}  Bh7 {[%clk 0:02:54]} 9. Bd3 {[%clk 0:02:47]}  Bxd3 {[%clk 0:02:54]} 10. Qxd3 {[%clk 0:02:48]}  e6 {[%clk 0:02:54]} 11. Bf4 {[%clk 0:02:47]}  Qa5+ {[%clk 0:02:51]} 12. Bd2 {[%clk 0:02:46]}  Bb4 {[%clk 0:02:51]} 13. c3 {[%clk 0:02:46]}  Be7 {[%clk 0:02:52]} 14. a4 {[%clk 0:02:27]}  Ngf6 {[%clk 0:02:50]} 15. b4 {[%clk 0:02:27]}  Qc7 {[%clk 0:02:51]} 16. O-O {[%clk 0:02:27]}  O-O {[%clk 0:02:45]} 17. Rfe1 {[%clk 0:02:27]}  a5 {[%clk 0:02:40]} 18. Nf5 {[%clk 0:02:22]}  Rfe8 {[%clk 0:02:23]} 19. Nxe7+ {[%clk 0:02:19]}  Rxe7 {[%clk 0:02:23]} 20. bxa5 {[%clk 0:02:14]}  Nxh5 {[%clk 0:02:21]} 21. c4 {[%clk 0:02:11]}  Nf4 {[%clk 0:02:14]} 22. Qe4 {[%clk 0:02:08]}  Ng6 {[%clk 0:02:12]} 23. Rab1 {[%clk 0:02:06]}  Nf6 {[%clk 0:02:09]} 24. Qc2 {[%clk 0:02:06]}  Ng4 {[%clk 0:02:01]} 25. g3 {[%clk 0:01:30]}  Rae8 {[%clk 0:01:53]} 26. Re4 {[%clk 0:01:23]}  Nf6 {[%clk 0:01:53]} 27. Re2 {[%clk 0:01:20]}  e5 {[%clk 0:01:52]} 28. dxe5 {[%clk 0:01:19]}  Nxe5 {[%clk 0:01:51]} 29. Nxe5 {[%clk 0:01:17]}  Rxe5 {[%clk 0:01:51]} 30. Rxe5 {[%clk 0:01:17]}  Qxe5 {[%clk 0:01:44]} 31. Rxb7 {[%clk 0:01:09]}  Ne4 {[%clk 0:01:35]} 32. Bf4 {[%clk 0:01:06]}  Qd4 {[%clk 0:01:30]} 33. a6 {[%clk 0:01:00]}  Nc5 {[%clk 0:01:28]} 34. Qb1 {[%clk 0:00:33]}  Nxb7 {[%clk 0:01:24]} 35. axb7 {[%clk 0:00:33]}  Qxc4 {[%clk 0:01:11]} 36. b8=Q {[%clk 0:00:33]}  Rxb8 {[%clk 0:01:09]} 37. Qxb8+ {[%clk 0:00:33]}  Kh7 {[%clk 0:01:10]} 38. Qb1+ {[%clk 0:00:32]}  g6 {[%clk 0:01:09]} 39. a5 {[%clk 0:00:32]}  Qa4 {[%clk 0:01:07]} 40. Bd2 {[%clk 0:00:32]}  c5 {[%clk 0:01:06]} 41. Bc3 {[%clk 0:00:31]}  c4 {[%clk 0:01:02]} 42. Qe1 {[%clk 0:00:31]}  Kg8 {[%clk 0:00:58]} 43. Qe5 {[%clk 0:00:30]}  Kf8 {[%clk 0:00:58]} 44. Qd6+ {[%clk 0:00:23]}  Ke8 {[%clk 0:00:49]} 45. Bf6 {[%clk 0:00:23]}  Qd7 {[%clk 0:00:39]} 46. Qb8+ {[%clk 0:00:23]}  Qd8 {[%clk 0:00:39]} 47. Qxd8# {[%clk 0:00:23]} 1-0


[Site "https://www.chess.com"]

[Event "Titled Tuesday Blitz May 30 Late 2023"]
[White "Vlassov, Nikolai"]
[Black "Przybylski, Wojciech"]
[WhiteFideId "4103360"]
[BlackFideId "1117599"]
[WhiteElo "2324"]
[BlackElo "2222"]
[Result "1-0"]
[Round "05"]
[TimeControl "180+2"]
[Date "2023.05.31"]
[WhiteClock "0:00:16"]
[BlackClock "0:00:04"]

1. e4 {[%clk 0:03:00]}  e5 {[%clk 0:02:57]} 2. Bc4 {[%clk 0:02:59]}  Nf6 {[%clk 0:02:56]} 3. d3 {[%clk 0:03:00]}  c6 {[%clk 0:02:56]} 4. Nf3 {[%clk 0:03:00]}  Qc7 {[%clk 0:02:55]} 5. O-O {[%clk 0:02:59]}  Be7 {[%clk 0:02:54]} 6. d4 {[%clk 0:02:49]}  d6 {[%clk 0:02:54]} 7. Ng5 {[%clk 0:02:49]}  O-O {[%clk 0:02:53]} 8. f4 {[%clk 0:02:49]}  exf4 {[%clk 0:02:50]} 9. Bxf4 {[%clk 0:02:48]}  h6 {[%clk 0:02:48]} 10. Nxf7 {[%clk 0:02:46]}  Rxf7 {[%clk 0:02:40]} 11. Bxf7+ {[%clk 0:02:46]}  Kxf7 {[%clk 0:02:40]} 12. e5 {[%clk 0:02:46]}  dxe5 {[%clk 0:02:40]} 13. dxe5 {[%clk 0:02:46]}  Qb6+ {[%clk 0:02:39]} 14. Kh1 {[%clk 0:02:43]}  Qxb2 {[%clk 0:02:30]} 15. Nd2 {[%clk 0:02:01]}  Bg4 {[%clk 0:02:24]} 16. Qe1 {[%clk 0:01:49]}  Nbd7 {[%clk 0:01:46]} 17. exf6 {[%clk 0:01:46]}  Nxf6 {[%clk 0:01:46]} 18. Rb1 {[%clk 0:01:42]}  Qxa2 {[%clk 0:01:31]} 19. Rxb7 {[%clk 0:01:39]}  Re8 {[%clk 0:01:28]} 20. Bd6 {[%clk 0:01:12]}  Be6 {[%clk 0:01:12]} 21. Ne4 {[%clk 0:01:02]}  Qa6 {[%clk 0:00:51]} 22. Rxe7+ {[%clk 0:00:57]}  Rxe7 {[%clk 0:00:48]} 23. Bxe7 {[%clk 0:00:57]}  Kxe7 {[%clk 0:00:48]} 24. Nxf6 {[%clk 0:00:56]}  gxf6 {[%clk 0:00:47]} 25. Qf2 {[%clk 0:00:50]}  f5 {[%clk 0:00:34]} 26. Re1 {[%clk 0:00:50]}  Kf7 {[%clk 0:00:28]} 27. Qe3 {[%clk 0:00:49]}  Bd5 {[%clk 0:00:16]} 28. Qxh6 {[%clk 0:00:45]}  Be4 {[%clk 0:00:16]} 29. Qd2 {[%clk 0:00:31]}  Qa2 {[%clk 0:00:08]} 30. h3 {[%clk 0:00:29]}  Kf6 {[%clk 0:00:06]} 31. Qc3+ {[%clk 0:00:27]}  Kf7 {[%clk 0:00:05]} 32. Ra1 {[%clk 0:00:26]}  Qd5 {[%clk 0:00:04]} 33. Rxa7+ {[%clk 0:00:26]}  Ke6 {[%clk 0:00:05]} 34. Qg7 {[%clk 0:00:22]}  Qd1+ {[%clk 0:00:03]} 35. Kh2 {[%clk 0:00:22]}  Qc1 {[%clk 0:00:03]} 36. Qe7+ {[%clk 0:00:17]}  Kd5 {[%clk 0:00:03]} 37. Ra5+ {[%clk 0:00:16]}  Kd4 {[%clk 0:00:04]} 38. Qc5# {[%clk 0:00:16]} 1-0


[Site "https://www.chess.com"]